fUSD/lending_fUSD_20250109
["ID","MTS","AMOUNT","RATE_DAILY","PERIOD"]
[348233764,1736409036083,-509.39132598,9.991e-05,2]
[348233765,1736409036093,-500.0,9.991e-05,2]
[348233766,1736409036103,-500.0,9.991e-05,2]
[348233767,1736409036113,-500.0,9.991e-05,2]
[348233768,1736409036122,-504.36902386,9.991e-05,2]
[348233769,1736409036132,-500.0,9.992e-05,2]
[348233770,1736409036142,-500.0,9.992e-05,2]
[348233771,1736409036152,-535.94083761,9.992e-05,2]
[348233772,1736409036166,-500.0,9.992e-05,2]
[348233773,1736409036176,-500.0,9.992e-05,2]
[348233774,1736409036185,-500.0,9.992e-05,2]
[348233775,1736409036195,-500.0,9.992e-05,2]
[348233776,1736409036207,-500.0,9.992e-05,2]
[348233777,1736409036217,-500.0,9.992e-05,2]
[348233778,1736409036227,-613.91096147,9.992e-05,2]
[348233779,1736409036240,-602.74,9.992e-05,2]
[348233780,1736409036249,-500.0,9.992e-05,2]
[348233781,1736409036259,-534.15813523,9.992e-05,2]
[348233782,1736409036270,-500.2868452,9.992e-05,2]
[348233783,1736409036280,-500.0,9.992e-05,2]
[348233784,1736409036291,-500.0,9.992e-05,2]
[348233785,1736409036300,-500.0,9.992e-05,2]
[348233786,1736409036310,-500.0,9.992e-05,2]
[348233787,1736409036320,-500.0,9.992e-05,2]
[348233788,1736409036330,-500.0,9.992e-05,2]
[348233789,1736409036340,-639.67,9.992e-05,2]
[348233790,1736409036565,-500.0,9.992e-05,2]
[348233791,1736409036576,-500.0,9.992e-05,2]
[348233792,1736409036586,-500.0,9.992e-05,2]
[348233793,1736409036597,-500.0,9.992e-05,2]
[348233794,1736409036607,-500.0,9.992e-05,2]
[348233795,1736409036617,-500.0,9.992e-05,2]
[348233796,1736409036628,-500.0,9.992e-05,2]
[348233797,1736409036639,-500.0,9.992e-05,2]
[348233798,1736409036649,-500.0,9.992e-05,2]
[348233799,1736409036658,-500.0,9.992e-05,2]
[348233800,1736409036668,-500.0,9.992e-05,2]
[348233801,1736409036678,-500.0,9.992e-05,2]
[348233802,1736409036687,-500.54521001,9.992e-05,2]
[348233803,1736409036697,-500.0,9.992e-05,2]
[348233804,1736409036707,-500.0,9.992e-05,2]
[348233805,1736409036716,-500.0,9.992e-05,2]
[348233806,1736409036726,-501.04206366,9.992e-05,2]
[348233807,1736409036735,-500.0,9.992e-05,2]
[348233808,1736409036745,-516.80598518,9.992e-05,2]
[348233809,1736409036754,-500.0,9.992e-05,2]
[348233810,1736409036763,-500.0,9.992e-05,2]
[348233811,1736409036773,-511.38496396,9.992e-05,2]
[348233812,1736409036784,-509.08397426,9.992e-05,2]
[348233813,1736409036794,-500.0,9.992e-05,2]
[348233814,1736409036804,-500.0,9.992e-05,2]
[348233815,1736409036813,-503.20878696,9.992e-05,2]
[348233816,1736409036823,-500.5760863,9.992e-05,2]
[348233817,1736409036833,-500.0,9.992e-05,2]
[348233818,1736409036843,-500.0,9.992e-05,2]
[348233819,1736409036854,-500.0,9.992e-05,2]
[348233820,1736409036863,-500.0,9.992e-05,2]
[348233821,1736409036873,-500.0,9.992e-05,2]
[348233822,1736409036882,-500.0,9.992e-05,2]
[348233823,1736409036892,-583.37,9.992e-05,2]
[348233824,1736409036902,-500.0,9.992e-05,2]
[348233825,1736409036911,-500.0,9.992e-05,2]
[348233826,1736409036921,-500.0,9.992e-05,2]
[348233827,1736409036930,-500.0,9.992e-05,2]
[348233828,1736409036939,-500.0,9.992e-05,2]
[348233829,1736409036949,-260.67297095,9.992e-05,2]
[348233830,1736409036959,-506.25196,9.992e-05,2]
[348233831,1736409036969,-500.0,9.992e-05,2]
[348233832,1736409036979,-500.0,9.992e-05,2]
[348233833,1736409036989,-500.0,9.992e-05,2]
[348233834,1736409036999,-500.0,9.992e-05,2]
[348233835,1736409037008,-500.0,9.992e-05,2]
[348233836,1736409037018,-505.15268654,9.992e-05,2]
[348233837,1736409037030,-500.0,9.992e-05,2]
[348233838,1736409037039,-500.0,9.992e-05,2]
[348233839,1736409037048,-500.0,9.992e-05,2]
[348233840,1736409037058,-500.0,9.992e-05,2]
[348233841,1736409037068,-432.03903763,9.992e-05,2]
[348233842,1736409037078,-505.06769924,9.992e-05,2]
[348233843,1736409037087,-507.63,9.992e-05,2]
[348233844,1736409037097,-556.25333669,9.992e-05,2]
[348233845,1736409037107,-500.0,9.992e-05,2]
[348233846,1736409037116,-502.47542795,9.992e-05,2]
[348233847,1736409037126,-505.67501389,9.992e-05,2]
[348233848,1736409037136,-500.0,9.992e-05,2]
[348233849,1736409037145,-504.26751249,9.992e-05,2]
[348233850,1736409037155,-228.53578307,9.992e-05,2]
[348233851,1736409037165,-506.22862808,9.992e-05,2]
[348233852,1736409037178,-500.0,9.992e-05,2]
[348233853,1736409037188,-500.0,9.992e-05,2]
[348233854,1736409037197,-500.36777369,9.992e-05,2]
[348233855,1736409037207,-500.0,9.992e-05,2]
[348233856,1736409037219,-500.0,9.992e-05,2]
[348233857,1736409037228,-606.58601037,9.992e-05,2]
[348233858,1736409037238,-506.96690908,9.992e-05,2]
[348233859,1736409037248,-500.0,9.992e-05,2]
[348233860,1736409037259,-500.0,9.992e-05,2]
[348233861,1736409037268,-539.03968977,9.992e-05,2]
[348233862,1736409037281,-504.85355492,9.992e-05,2]
[348233863,1736409037291,-322.42593089,9.992e-05,2]
[348233864,1736409037300,-503.09175867,9.992e-05,2]
[348233865,1736409037310,-506.74661379,9.992e-05,2]
[348233866,1736409037320,-500.0,9.992e-05,2]
[348233867,1736409037329,-500.0,9.992e-05,2]
[348233868,1736409037339,-500.0,9.992e-05,2]
[348233869,1736409037348,-617.49797229,9.992e-05,2]
[348233870,1736409037358,-500.0,9.992e-05,2]
[348233871,1736409037368,-500.0,9.992e-05,2]
[348233872,1736409037377,-529.91761209,9.992e-05,2]
[348233873,1736409037387,-500.0,9.992e-05,2]
[348233874,1736409037397,-500.0,9.992e-05,2]
[348233875,1736409037407,-500.0,9.992e-05,2]
[348233876,1736409037417,-500.0,9.992e-05,2]
[348233877,1736409037427,-527.4072427,9.992e-05,2]
[348233878,1736409037436,-500.0,9.992e-05,2]
[348233879,1736409037446,-500.0,9.992e-05,2]
[348233880,1736409037456,-500.0,9.992e-05,2]
[348233881,1736409037465,-500.0,9.992e-05,2]
[348233882,1736409037474,-507.61,9.992e-05,2]
[348233883,1736409037484,-730.03,9.992e-05,2]
[348233884,1736409037494,-500.0,9.992e-05,2]
[348233885,1736409037504,-500.84094224,9.992e-05,2]
[348233886,1736409037514,-500.0,9.992e-05,2]
[348233887,1736409037524,-500.0,9.992e-05,2]
[348233888,1736409037535,-217.24966357,9.992e-05,2]
[348233889,1736409037545,-500.0,9.992e-05,2]
[348233890,1736409037555,-512.04129746,9.992e-05,2]
[348233891,1736409037564,-500.0,9.992e-05,2]
[348233892,1736409037574,-500.0,9.992e-05,2]
[348233893,1736409037584,-501.98402373,9.992e-05,2]
[348233894,1736409037593,-157.47,9.992e-05,7]
[348233895,1736409037603,-500.0,9.992e-05,2]
[348233896,1736409037612,-500.0,9.992e-05,2]
[348233897,1736409037622,-500.0,9.992e-05,2]
[348233898,1736409037632,-500.0,9.992e-05,2]
[348233899,1736409037642,-500.0,9.992e-05,2]
[348233900,1736409037652,-500.0,9.992e-05,2]
[348233901,1736409037661,-500.0,9.992e-05,2]
[348233902,1736409037671,-500.0,9.992e-05,2]
[348233903,1736409037681,-500.0,9.992e-05,2]
[348233904,1736409037690,-500.0,9.992e-05,2]
[348233905,1736409037700,-500.0,9.992e-05,2]
[348233906,1736409037709,-502.58331064,9.992e-05,2]
[348233907,1736409037719,-501.23874663,9.992e-05,2]
[348233908,1736409037729,-500.0,9.992e-05,2]
[348233909,1736409037738,-500.63345698,9.992e-05,2]
[348233910,1736409037747,-505.14993876,9.992e-05,2]
[348233911,1736409037757,-500.0,9.992e-05,2]
[348233912,1736409037768,-500.0,9.992e-05,2]
[348233913,1736409037779,-500.0,9.992e-05,2]
[348233914,1736409037789,-500.0,9.992e-05,2]
[348233915,1736409037798,-500.0,9.992e-05,2]
[348233916,1736409037807,-500.0,9.992e-05,2]
[348233917,1736409037817,-500.0,9.992e-05,2]
[348233918,1736409037827,-500.0,9.992e-05,2]
[348233919,1736409037836,-540.46,9.992e-05,2]
[348233920,1736409037846,-502.91276104,9.992e-05,2]
[348233921,1736409037856,-500.0,9.992e-05,2]
[348233922,1736409037865,-500.0,9.992e-05,2]
[348233923,1736409037875,-502.98891223,9.992e-05,2]
[348233924,1736409037885,-500.0,9.992e-05,2]
[348233925,1736409037894,-500.0,9.992e-05,2]
[348233926,1736409037904,-500.0,9.992e-05,2]
[348233927,1736409037913,-504.84351205,9.992e-05,2]
[348233928,1736409037923,-500.0,9.992e-05,2]
[348233929,1736409037933,-500.0,9.992e-05,2]
[348233930,1736409037942,-605.53677208,9.992e-05,2]
[348233931,1736409037952,-500.0,9.992e-05,2]
[348233932,1736409037961,-500.0,9.992e-05,2]
[348233933,1736409037971,-500.0,9.992e-05,2]
[348233934,1736409037980,-1030.98,9.992e-05,2]
[348233936,1736409037990,-501.33246564,9.992e-05,2]
[348233937,1736409037999,-500.0,9.992e-05,2]
[348233939,1736409038008,-500.0,9.992e-05,2]
[348233940,1736409038018,-500.0,9.992e-05,2]
[348233941,1736409038028,-500.0,9.992e-05,2]
[348233942,1736409038038,-500.0,9.992e-05,2]
[348233943,1736409038047,-500.0,9.992e-05,2]
[348233944,1736409038056,-500.0,9.992e-05,2]
[348233945,1736409038066,-502.93145544,9.992e-05,2]
[348233946,1736409038076,-500.0,9.992e-05,2]
[348233947,1736409038085,-500.0,9.992e-05,2]
[348233948,1736409038095,-500.0,9.992e-05,2]
[348233949,1736409038105,-725.665095,9.992e-05,2]
[348233950,1736409038115,-500.0,9.992e-05,2]
[348233951,1736409038124,-500.0,9.992e-05,2]
[348233952,1736409038134,-500.0,9.992e-05,2]
[348233953,1736409038143,-500.0,9.992e-05,2]
[348233954,1736409038153,-500.0,9.992e-05,2]
[348233955,1736409038162,-500.0,9.992e-05,2]
[348233956,1736409038172,-500.0,9.992e-05,2]
[348233957,1736409038185,-501.79558602,9.992e-05,2]
[348233958,1736409038194,-500.0,9.992e-05,2]
[348233959,1736409038203,-500.0,9.992e-05,2]
[348233960,1736409038212,-500.0,9.992e-05,2]
[348233961,1736409038222,-500.0,9.992e-05,2]
[348233962,1736409038231,-500.0,9.992e-05,2]
[348233963,1736409038240,-500.0,9.992e-05,2]
[348233964,1736409038249,-652.836554,9.992e-05,2]
[348233965,1736409038258,-500.0,9.992e-05,2]
[348233966,1736409038267,-500.0,9.992e-05,2]
[348233967,1736409038278,-500.0,9.992e-05,2]
[348233968,1736409038287,-500.0,9.992e-05,2]
[348233969,1736409038296,-1339.92,9.992e-05,2]
[348233970,1736409038306,-500.0,9.992e-05,2]
[348233971,1736409038315,-601.10918555,9.992e-05,2]
[348233972,1736409038326,-500.0,9.992e-05,2]
[348233973,1736409038337,-500.0,9.992e-05,2]
[348233974,1736409038348,-500.0,9.992e-05,2]
[348233975,1736409038358,-505.71429642,9.992e-05,2]
[348233976,1736409038367,-500.0,9.992e-05,2]
[348233977,1736409038377,-500.0,9.992e-05,2]
[348233978,1736409038386,-500.0,9.992e-05,2]
[348233979,1736409038395,-500.0,9.992e-05,2]
[348233980,1736409038405,-502.40358753,9.992e-05,2]
[348233981,1736409038416,-500.0,9.992e-05,2]
[348233982,1736409038425,-500.0,9.992e-05,2]
[348233983,1736409038434,-500.0,9.992e-05,2]
[348233984,1736409038444,-500.0,9.992e-05,2]
[348233985,1736409038456,-500.0,9.992e-05,2]
[348233986,1736409038465,-500.0,9.992e-05,2]
[348233987,1736409038474,-500.0,9.992e-05,2]
[348233988,1736409038483,-500.0,9.992e-05,2]
[348233989,1736409038493,-526.09288813,9.992e-05,2]
[348233990,1736409038502,-500.0,9.992e-05,2]
[348233991,1736409038511,-500.0,9.992e-05,2]
[348233992,1736409038520,-500.0,9.992e-05,2]
[348233993,1736409038531,-500.0,9.992e-05,2]
[348233994,1736409038541,-500.0,9.992e-05,2]
[348233995,1736409038550,-500.0,9.992e-05,2]
[348233996,1736409038560,-500.0,9.992e-05,2]
[348233997,1736409038569,-1433.76,9.992e-05,2]
[348233998,1736409038578,-500.0,9.992e-05,2]
[348233999,1736409038588,-500.0,9.992e-05,2]
[348234000,1736409038597,-500.0,9.992e-05,2]
[348234001,1736409038607,-500.0,9.992e-05,2]
[348234002,1736409038617,-167.05675434,9.992e-05,2]
[348234003,1736409038627,-500.0,9.992e-05,2]
[348234004,1736409038638,-500.0,9.992e-05,2]
[348234005,1736409038649,-501.52093346,9.992e-05,2]
[348234006,1736409038660,-500.0,9.992e-05,2]
[348234007,1736409038670,-500.0,9.992e-05,2]
[348234008,1736409038679,-500.0,9.992e-05,2]
[348234009,1736409038688,-500.0,9.992e-05,2]
[348234010,1736409038697,-584.2014866,9.992e-05,2]
[348234011,1736409038707,-502.39315846,9.992e-05,2]
[348234012,1736409038716,-500.0,9.992e-05,2]
[348234013,1736409038726,-500.0,9.992e-05,2]
[348234014,1736409038736,-500.0,9.992e-05,2]
[348234016,1736409038746,-563.07,9.992e-05,2]
[348234018,1736409038756,-770.25,9.992e-05,2]
[348234021,1736409038766,-829.52,9.992e-05,2]
[348234022,1736409038779,-200.0,9.993e-05,2]
[348234024,1736409038788,-1771.3756,9.993e-05,2]
[348234026,1736409038797,-500.74734278,9.993e-05,2]
[348234028,1736409038807,-501.33127077,9.993e-05,2]
[348234031,1736409038816,-500.2275486,9.993e-05,2]
[348234032,1736409038826,-502.03020684,9.993e-05,2]
[348234034,1736409038836,-500.0,9.993e-05,2]
[348234037,1736409038847,-500.0,9.993e-05,2]
[348234038,1736409038856,-642.67761775,9.993e-05,2]
[348234040,1736409038866,-502.50122371,9.993e-05,2]
[348234048,1736409038927,-500.0,9.993e-05,2]
[348234050,1736409038936,-500.0,9.993e-05,2]
[348234052,1736409038945,-268.23272388,9.993e-05,2]
[348234054,1736409038955,-501.09213495,9.993e-05,2]
[348234056,1736409038964,-500.32647511,9.993e-05,2]
[348234058,1736409038973,-501.59261123,9.993e-05,2]
[348234060,1736409038983,-160.50178457,9.993e-05,2]
[348234062,1736409038992,-501.03159337,9.993e-05,2]
[348234064,1736409039001,-500.74820008,9.993e-05,2]
[348234066,1736409039011,-500.38394182,9.993e-05,2]
[348234068,1736409039020,-501.48077037,9.993e-05,2]
[348234070,1736409039031,-500.86714968,9.993e-05,2]
[348234072,1736409039041,-500.59781116,9.993e-05,2]
[348234074,1736409039050,-500.32072586,9.993e-05,2]
[348234076,1736409039059,-501.3047106,9.993e-05,2]
[348234078,1736409039069,-501.04582861,9.993e-05,2]
[348234080,1736409039078,-500.0,9.993e-05,2]
[348234082,1736409039087,-501.41259309,9.993e-05,2]
[348234083,1736409039096,-501.17139517,9.993e-05,2]
[348234084,1736409039105,-501.26398591,9.993e-05,2]
[348234085,1736409039114,-501.94068898,9.993e-05,2]
[348234086,1736409039123,-501.54856105,9.993e-05,2]
[348234087,1736409039132,-500.55306716,9.993e-05,2]
[348234088,1736409039141,-1584.38,9.993e-05,2]
[348234089,1736409039151,-1474.73,9.993e-05,2]
[348234090,1736409039161,-500.0,9.993e-05,2]
[348234091,1736409039171,-594.82,9.993e-05,2]
[348234092,1736409039184,-500.0,9.993e-05,2]
[348234094,1736409039193,-1529.74,9.993e-05,2]
[348234096,1736409039203,-500.0,9.993e-05,2]
[348234098,1736409039211,-500.0,9.993e-05,2]
[348234100,1736409039221,-500.0,9.993e-05,2]
[348234102,1736409039230,-664.25,9.993e-05,2]
[348234104,1736409039240,-500.0,9.993e-05,2]
[348234106,1736409039250,-1071.45,9.993e-05,2]
[348234108,1736409039259,-500.0,9.993e-05,2]
[348234110,1736409039270,-666.12,9.993e-05,2]
[348234112,1736409039281,-655.41,9.993e-05,2]
[348234114,1736409039290,-727.62,9.993e-05,2]
[348234116,1736409039299,-530.98,9.993e-05,2]
[348234118,1736409039308,-500.0,9.993e-05,2]
[348234120,1736409039318,-373.37474946,9.993e-05,2]
[348234122,1736409039327,-678.31,9.993e-05,2]
[348234125,1736409039336,-500.0,9.993e-05,2]
[348234127,1736409039346,-961.51,9.993e-05,2]
[348234129,1736409039354,-1750.33,9.993e-05,2]
[348234131,1736409039363,-500.0,9.993e-05,2]
[348234133,1736409039372,-500.0,9.993e-05,2]
[348234134,1736409039383,-2875.29,9.993e-05,2]
[348234136,1736409039392,-1312.45,9.993e-05,2]
[348234138,1736409039401,-764.99,9.993e-05,2]
[348234140,1736409039411,-500.0,9.993e-05,2]
[348234142,1736409039421,-1000.0,9.993e-05,2]
[348234144,1736409039430,-500.0,9.993e-05,2]
[348234146,1736409039440,-911.35,9.993e-05,2]
[348234148,1736409039449,-1205.19,9.993e-05,2]
[348234150,1736409039458,-574.3,9.993e-05,2]
[348234152,1736409039467,-500.0,9.993e-05,2]
[348234154,1736409039476,-500.0,9.993e-05,2]
[348234156,1736409039485,-848.86,9.993e-05,2]
[348234158,1736409039495,-500.0,9.993e-05,2]
[348234160,1736409039503,-501.04929038,9.993e-05,2]
[348234162,1736409039513,-500.0,9.993e-05,2]
[348234164,1736409039522,-519.79,9.993e-05,2]
[348234166,1736409039534,-1301.41,9.993e-05,2]
[348234168,1736409039544,-1337.26,9.993e-05,2]
[348234170,1736409039553,-1144.45,9.993e-05,2]
[348234172,1736409039562,-587.23,9.993e-05,2]
[348234174,1736409039571,-192763.65235969,9.998e-05,2]
[348234176,1736409039580,-9123.37197231,9.998e-05,2]
[348234178,1736409039589,-17434.22233821,9.998e-05,2]
[348234180,1736409039598,-500.0,9.999e-05,2]
[348234182,1736409039607,-500.0,9.999e-05,2]
[348234184,1736409039616,-500.0,9.999e-05,2]
[348234186,1736409039626,-500.0,9.999e-05,2]
[348234188,1736409039635,-1245.64,9.999e-05,2]
[348234190,1736409039645,-813.28,9.999e-05,2]
[348234192,1736409039654,-1783.7,9.999e-05,2]
[348234194,1736409039664,-500.0,9.999e-05,2]
[348234196,1736409039673,-823.06,9.999e-05,2]
[348234197,1736409039682,-54816.66029934,0.0001,2]
[348234214,1736409039954,-242699.6065,0.0001,2]
[348234215,1736409039979,-1184.44299402,0.0001,2]
[348234217,1736409040673,-390.92778239,9.892e-05,2]
[348234218,1736409040685,-4609.07221761,9.892e-05,2]
[348234219,1736409040694,-500.0,9.991e-05,2]
[348234220,1736409040704,-500.0,9.991e-05,2]
[348234221,1736409040713,-500.0,9.991e-05,2]
[348234222,1736409040723,-569.11602522,9.991e-05,2]
[348234223,1736409040733,-9535814.60576215,0.0001,2]
[348234224,1736409040743,-3119.26846451,0.0001,2]
[348234225,1736409040752,-1687.37422237,0.0001,2]
[348234226,1736409040762,-26444.65128512,0.0001,2]
[348234227,1736409040772,-3012.7048965,0.0001,2]
[348234228,1736409040783,-163177.80064449,0.0001,2]
[348234229,1736409040795,-400.7868537,0.0001,2]
[348234230,1736409040841,-9830.0985431,0.0001,2]
[348234231,1736409040852,-1385.60623345,0.0001,2]
[348234232,1736409040864,-500.0,0.0001,2]
[348234245,1736409041103,-297.83143359,0.0001,2]
[348234247,1736409041115,-44496.15585297,0.0001,2]
[348234249,1736409041127,-292.44183934,0.0001,2]
[348234323,1736409044363,-500.0,9.991e-05,2]
[348234324,1736409044373,-341.38764398,9.991e-05,2]
[348234325,1736409044385,-158.61235602,9.991e-05,2]
[348234326,1736409044395,-500.0,9.991e-05,2]
[348234327,1736409044405,-500.0,9.991e-05,2]
[348234328,1736409044415,-500.0,9.991e-05,2]
[348234329,1736409044425,-621.11307273,9.991e-05,2]
[348234330,1736409044435,-500.0,9.991e-05,2]
[348234331,1736409044445,-760413.12098641,0.0001,2]
[348234333,1736409044571,-254.75062126,0.0001,2]
[348234473,1736409046174,-34847.14667536,0.0001,2]
[348234474,1736409046472,-500.0,9.991e-05,2]
[348234475,1736409046482,-1446.5,9.991e-05,2]
[348234476,1736409046491,-2666.21443,0.0001,2]
[348234477,1736409046503,-4933.43884716,0.0001,2]
[348234514,1736409279450,546.04944006,0.0002001,120]
[348234516,1736409778532,959.98,8.219e-05,2]
[348234517,1736409931695,150.0,0.0001976,120]
[348234534,1736410110856,150.0,0.00019198,120]
[348234555,1736410232217,-250.0,9.135e-05,2]
[348234556,1736410232227,-21.5,9.162e-05,2]
[348234557,1736410232239,-198.24,9.162e-05,2]
[348234558,1736410232249,-401.76,9.17e-05,2]
[348234559,1736410232260,-518.94,9.17e-05,2]
[348234560,1736410232272,-79.3,9.17e-05,2]
[348234561,1736410232282,-296.539991,9.8e-05,2]
[348234562,1736410232294,-279.58552138,9.8e-05,2]
[348234563,1736410232304,-1251.19800757,9.8e-05,2]
[348234564,1736410232314,-217.63766278,9.891e-05,2]
[348234565,1736410232323,-2364.72265748,9.9e-05,2]
[348234566,1736410232335,-7155.97072644,9.9e-05,2]
[348234567,1736410232346,-357.03879699,9.9e-05,2]
[348234568,1736410232359,-413.90949696,9.9e-05,2]
[348234569,1736410232377,-3476.13558,9.9e-05,2]
[348234570,1736410232388,-1190.87951664,9.9e-05,2]
[348234571,1736410232642,-1851.93527009,9.9e-05,2]
[348234572,1736410232655,-933.4325,9.9e-05,2]
[348234710,1736410238110,-4266.93135916,9.9e-05,2]
[348234711,1736410238122,-1907.67398131,9.9e-05,2]
[348234712,1736410238164,-2112.3825723,9.9e-05,2]
[348234713,1736410238277,-157144.89379406,9.9e-05,2]
[348234714,1736410238287,-20453.22800826,9.9e-05,2]
[348234715,1736410238297,-499.47513671,9.973e-05,2]
[348234716,1736410238307,-936.69,9.988e-05,2]
[348234717,1736410238316,-3395.26,9.988e-05,2]
[348234718,1736410238326,-500.0,9.988e-05,2]
[348234719,1736410238335,-500.0,9.988e-05,2]
[348234720,1736410238344,-500.0,9.988e-05,2]
[348234721,1736410238354,-500.0,9.988e-05,2]
[348234722,1736410238364,-1406.51,9.988e-05,2]
[348234723,1736410238373,-1106.71,9.988e-05,2]
[348234724,1736410238383,-500.0,9.988e-05,2]
[348234725,1736410238392,-500.0,9.988e-05,2]
[348234726,1736410238402,-2057.76,9.988e-05,2]
[348234727,1736410238412,-500.0,9.988e-05,2]
[348234728,1736410238421,-500.0,9.988e-05,2]
[348234729,1736410238431,-500.0,9.988e-05,2]
[348234730,1736410238454,-1118.97,9.988e-05,2]
[348234731,1736410238463,-699.61,9.988e-05,2]
[348234732,1736410238473,-500.0,9.988e-05,2]
[348234733,1736410238483,-892.54,9.988e-05,2]
[348234734,1736410238491,-752.73,9.988e-05,2]
[348234735,1736410238501,-669.31,9.988e-05,2]
[348234736,1736410238510,-500.0,9.988e-05,2]
[348234737,1736410238519,-1448.08,9.988e-05,2]
[348234738,1736410238528,-500.0,9.988e-05,2]
[348234739,1736410238537,-500.0,9.988e-05,2]
[348234741,1736410238546,-500.0,9.988e-05,2]
[348234743,1736410238557,-529.79,9.988e-05,2]
[348234745,1736410238565,-500.0,9.988e-05,2]
[348234746,1736410238574,-500.0,9.988e-05,2]
[348234747,1736410238583,-500.0,9.988e-05,2]
[348234748,1736410238592,-854.68,9.988e-05,2]
[348234749,1736410238601,-582.31,9.988e-05,2]
[348234750,1736410238609,-500.0,9.988e-05,2]
[348234751,1736410238618,-500.0,9.988e-05,2]
[348234752,1736410238627,-988.03,9.988e-05,2]
[348234753,1736410238636,-500.0,9.988e-05,2]
[348234754,1736410238645,-868.7,9.988e-05,2]
[348234755,1736410238654,-500.0,9.988e-05,2]
[348234756,1736410238663,-500.0,9.988e-05,2]
[348234757,1736410238671,-500.0,9.988e-05,2]
[348234759,1736410238680,-644.45592147,9.988e-05,2]
[348234761,1736410238690,-500.0,9.988e-05,2]
[348234763,1736410238699,-351.66,9.989e-05,2]
[348234765,1736410238708,-500.0,9.989e-05,2]
[348234767,1736410238717,-500.0,9.989e-05,2]
[348234769,1736410238727,-556.18,9.989e-05,2]
[348234771,1736410238736,-285.807363,9.989e-05,2]
[348234773,1736410238746,-500.0,9.989e-05,2]
[348234775,1736410238755,-500.0,9.989e-05,2]
[348234777,1736410238764,-500.0,9.989e-05,2]
[348234779,1736410238774,-500.0,9.989e-05,2]
[348234781,1736410238783,-500.0,9.989e-05,2]
[348234783,1736410238792,-500.0,9.989e-05,2]
[348234786,1736410238802,-500.0,9.989e-05,2]
[348234788,1736410238811,-500.0,9.989e-05,2]
[348234790,1736410238820,-500.0,9.989e-05,2]
[348234792,1736410238829,-2033.33,9.989e-05,2]
[348234793,1736410238838,-500.0,9.989e-05,2]
[348234795,1736410238848,-500.0,9.989e-05,2]
[348234797,1736410238858,-500.0,9.989e-05,2]
[348234799,1736410238867,-500.0,9.989e-05,2]
[348234802,1736410238876,-500.0,9.989e-05,2]
[348234803,1736410238885,-500.0,9.989e-05,2]
[348234805,1736410238895,-500.0,9.989e-05,2]
[348234807,1736410238905,-500.0,9.989e-05,2]
[348234810,1736410238914,-500.0,9.989e-05,2]
[348234811,1736410238924,-500.0,9.989e-05,2]
[348234813,1736410238934,-500.0,9.989e-05,2]
[348234815,1736410238945,-500.0,9.989e-05,2]
[348234817,1736410238954,-500.0,9.989e-05,2]
[348234819,1736410238963,-500.0,9.989e-05,2]
[348234821,1736410238972,-500.0,9.989e-05,2]
[348234823,1736410238982,-385.17589502,9.989e-05,2]
[348234825,1736410238991,-500.0,9.989e-05,2]
[348234827,1736410239000,-500.0,9.989e-05,2]
[348234829,1736410239010,-500.0,9.989e-05,2]
[348234831,1736410239019,-500.0,9.989e-05,2]
[348234833,1736410239028,-507.39731679,9.989e-05,2]
[348234835,1736410239038,-500.0,9.989e-05,2]
[348234837,1736410239048,-519.37,9.989e-05,2]
[348234839,1736410239057,-500.0,9.989e-05,2]
[348234841,1736410239066,-500.0,9.989e-05,2]
[348234843,1736410239075,-500.0,9.989e-05,2]
[348234845,1736410239084,-463.95233646,9.989e-05,2]
[348234847,1736410239093,-507.84867024,9.989e-05,2]
[348234849,1736410239102,-508.24036392,9.989e-05,2]
[348234851,1736410239113,-500.0,9.989e-05,2]
[348234853,1736410239123,-471.61901154,9.989e-05,2]
[348234855,1736410239132,-500.0,9.989e-05,2]
[348234857,1736410239141,-562.34704797,9.989e-05,2]
[348234859,1736410239150,-500.0,9.989e-05,2]
[348234861,1736410239163,-500.0,9.989e-05,2]
[348234862,1736410239172,-500.0,9.989e-05,2]
[348234863,1736410239181,-500.0,9.989e-05,2]